[Event "Fast Chess"]
[Site "ChessKid.com"]
[Date "2020.05.01"]
[Round "3"]
[White "Li, Patrick"]
[Black "Li, Tobias"]
[Result "0-1"]
[ECO "C55"]
[WhiteElo "1093"]
[BlackElo "1333"]
[PlyCount "132"]
[EventDate "2020.??.??"]
[TimeControl "600"]
[WhiteClock "0:02:26"]
[BlackClock "0:02:16"]

1. e4 {[%emt 0:00:03]} e5 {[%emt 0:00:01]} 2. Nf3 {[%emt 0:00:01]} Nc6 {
[%emt 0:00:03]} 3. Nc3 {[%emt 0:00:04]} Nf6 {[%emt 0:00:02]} 4. Bc4 {[%emt 0:
00:01]} Bc5 {[%emt 0:00:03]} 5. O-O {[%emt 0:00:03]} O-O {[%emt 0:00:03]} 6. h3
{[%emt 0:00:05]} h6 {[%emt 0:00:02]} 7. a3 {[%emt 0:00:03]} a6 {[%emt 0:00:02]}
8. b4 {[%emt 0:00:02]} Bd4 {[%emt 0:00:01]} 9. Nxd4 {[%emt 0:00:05]} Nxd4 {
[%emt 0:00:02]} 10. Bd5 {[%emt 0:00:13]} c6 {[%emt 0:00:13]} 11. Bc4 {[%emt 0:
00:05]} d5 {[%emt 0:00:10]} 12. exd5 {[%emt 0:00:02]} cxd5 {[%emt 0:00:04]} 13.
Bd3 {[%emt 0:00:02]} Re8 {[%emt 0:00:13]} 14. Bb2 {[%emt 0:00:28]} e4 {[%emt 0:
00:07]} 15. Be2 {[%emt 0:00:07]} Bd7 {[%emt 0:00:09]} 16. Bh5 {[%emt 0:00:03]}
Nxh5 {[%emt 0:00:05]} 17. Qxh5 {[%emt 0:00:01]} Qf6 {[%emt 0:00:03]} 18. Qd1 {
[%emt 0:00:20]} Qg6 {[%emt 0:00:04]} 19. Nxd5 {[%emt 0:00:29]} Bxh3 {[%emt 0:
00:07]} 20. g3 {[%emt 0:00:08]} Bxf1 {[%emt 0:00:01]} 21. Kxf1 {[%emt 0:00:01]}
Rac8 {[%emt 0:00:12]} 22. Bxd4 {[%emt 0:00:09]} Red8 {[%emt 0:00:22]} 23. Nf4 {
[%emt 0:00:05]} Qc6 {[%emt 0:00:21]} 24. Bc3 {[%emt 0:00:10]} Qc4+ {[%emt 0:00:
20]} 25. Ke1 {[%emt 0:00:05]} Re8 {[%emt 0:00:22]} 26. Qg4 {[%emt 0:00:05]} g5
{[%emt 0:00:27]} 27. Nh5 {[%emt 0:00:06]} Qc6 {[%emt 0:00:11]} 28. Ng7 {
[%emt 0:00:12]} Kf8 {[%emt 0:00:19]} 29. Nf5 {[%emt 0:00:09]} Qg6 {[%emt 0:00:
19]} 30. Bg7+ {[%emt 0:00:08]} Kg8 {[%emt 0:00:05]} 31. Qh3 {[%emt 0:00:23]}
Rxc2 {[%emt 0:00:07]} 32. Bxh6 {[%emt 0:00:19]} Re5 {[%emt 0:00:25]} 33. Ne3 {
[%emt 0:00:14]} Rc6 {[%emt 0:00:11]} 34. Ng4 {[%emt 0:00:14]} Ree6 {[%emt 0:00:
07]} 35. Ne3 {[%emt 0:00:22]} Qxh6 {[%emt 0:00:14]} 36. Qg4 {[%emt 0:00:04]}
Rc8 {[%emt 0:00:13]} 37. Nf5 {[%emt 0:00:12]} Qh1+ {[%emt 0:00:07]} 38. Ke2 {
[%emt 0:00:05]} Qxa1 {[%emt 0:00:02]} 39. Qxg5+ {[%emt 0:00:18]} Rg6 {[%emt 0:
00:11]} 40. Qh5 {[%emt 0:00:09]} Kf8 {[%emt 0:00:17]} 41. Qh4 {[%emt 0:00:04]}
Qf6 {[%emt 0:00:18]} 42. Qxe4 {[%emt 0:00:12]} Qe6 {[%emt 0:00:07]} 43. Qxe6 {
[%emt 0:00:16]} Rxe6+ {[%emt 0:00:02]} 44. Kf1 {[%emt 0:00:02]} Rc1+ {[%emt 0:
00:05]} 45. Kg2 {[%emt 0:00:02]} Rf6 {[%emt 0:00:03]} 46. Nh4 {[%emt 0:00:04]}
Rc4 {[%emt 0:00:03]} 47. Nf3 {[%emt 0:00:03]} Rxf3 {[%emt 0:00:03]} 48. Kxf3 {
[%emt 0:00:02]} Rc2 {[%emt 0:00:03]} 49. Ke3 {[%emt 0:00:04]} Ra2 {[%emt 0:00:
00]} 50. Kd3 {[%emt 0:00:03]} Rxa3+ {[%emt 0:00:01]} 51. Ke2 {[%emt 0:00:01]}
Rb3 {[%emt 0:00:02]} 52. Kd1 {[%emt 0:00:05]} Rxb4 {[%emt 0:00:02]} 53. Kc2 {
[%emt 0:00:02]} Rb6 {[%emt 0:00:04]} 54. Kd1 {[%emt 0:00:02]} Rf6 {[%emt 0:00:
00]} 55. f4 {[%emt 0:00:03]} b5 {[%emt 0:00:01]} 56. Kc2 {[%emt 0:00:02]} Rg6 {
[%emt 0:00:01]} 57. f5 {[%emt 0:00:08]} Rxg3 {[%emt 0:00:01]} 58. d4 {[%emt 0:
00:01]} a5 {[%emt 0:00:01]} 59. Kb2 {[%emt 0:00:04]} b4 {[%emt 0:00:01]} 60.
Ka2 {[%emt 0:00:03]} a4 {[%emt 0:00:01]} 61. Kb2 {[%emt 0:00:04]} a3+ {[%emt 0:
00:03]} 62. Ka2 {[%emt 0:00:03]} Ke7 {[%emt 0:00:02]} 63. d5 {[%emt 0:00:05]}
Kd6 {[%emt 0:00:01]} 64. f6 {[%emt 0:00:05]} Kxd5 {[%emt 0:00:01]} 65. Ka1 {
[%emt 0:00:06]} b3 {[%emt 0:00:01]} 66. Kb1 {[%emt 0:00:03]} Rg1# {[%emt 0:00:
00] OnlyHungryKiwi won by checkmate} 0-1

[Event "Fast Chess"]
[Site "ChessKid.com"]
[Date "2020.05.01"]
[Round "3"]
[White "Sasse, Gabriel"]
[Black "Georgiev, Maximilian"]
[Result "1-0"]
[ECO "C50"]
[WhiteElo "1298"]
[BlackElo "1384"]
[Annotator "Abzugsschach, Doppelschach"]
[PlyCount "49"]
[EventDate "2020.??.??"]
[TimeControl "600"]
[WhiteClock "0:08:06"]
[BlackClock "0:08:49"]

1. e4 {[%emt 0:00:03]} e5 {[%emt 0:00:01]} 2. Nf3 {[%emt 0:00:01]} Nc6 {
[%emt 0:00:01]} 3. Bc4 {[%emt 0:00:01]} h6 {[%emt 0:00:02]} 4. h3 {[%emt 0:00:
02]} Nf6 {[%emt 0:00:00]} 5. Nc3 {[%emt 0:00:01]} a6 {[%emt 0:00:03]} 6. O-O {
[%emt 0:00:01]} Bb4 {[%emt 0:00:01]} 7. a3 {[%emt 0:00:01]} Ba5 {[%emt 0:00:01]
} 8. b4 {[%emt 0:00:01]} Bb6 {[%emt 0:00:01]} 9. a4 {[%emt 0:00:02]} Nxb4 {
[%emt 0:00:01]} 10. a5 {[%emt 0:00:02]} Ba7 {[%emt 0:00:03]} 11. Nxe5 {[%emt 0:
00:06]} O-O {[%emt 0:00:04]} 12. Nxf7 {[%emt 0:00:03]} Rxf7 {[%emt 0:00:02]}
13. Bxf7+ {[%emt 0:00:01]} Kxf7 {[%emt 0:00:00]} 14. Ba3 {[%emt 0:00:08]} Nc6 {
[%emt 0:00:06]} 15. Nd5 {[%emt 0:00:05]} Nxe4 {[%emt 0:00:06]} 16. c3 {[%emt 0:
00:04]} Nxf2 {[%emt 0:00:03]} 17. Qb3 {[%emt 0:00:05]} Ke8 {[%emt 0:00:26]} 18.
Rae1+ {[%emt 0:00:06]} Kf7 {[%emt 0:00:02]} 19. Nb6+ $3 {[%emt 0:00:01]} Kg6 {
[%emt 0:00:13]} 20. Nxa8 $6 {[%emt 0:00:03]} Nd3+ {[%emt 0:00:07]} 21. Kh2 {
[%emt 0:00:01]} Nxe1 {[%emt 0:00:02]} 22. Rxe1 {[%emt 0:00:03]} Kh7 {[%emt 0:
00:04]} 23. Qc2+ {[%emt 0:00:03]} Kg8 {[%emt 0:00:02]} 24. Rf1 {[%emt 0:00:03]}
Qg5 {[%emt 0:00:24]} 25. Rf8# {[%emt 0:00:06] LimeFarActor won by checkmate}
1-0

[Event "Fast Chess"]
[Site "ChessKid.com"]
[Date "2020.05.01"]
[Round "1"]
[White "Li, Patrick"]
[Black "Li, Tobias"]
[Result "1/2-1/2"]
[ECO "C50"]
[WhiteElo "1103"]
[BlackElo "1329"]
[PlyCount "126"]
[EventDate "2020.??.??"]
[TimeControl "600"]
[WhiteClock "0:05:10"]
[BlackClock "0:04:58"]

1. e4 {[%emt 0:00:04]} e5 {[%emt 0:00:02]} 2. Nf3 {[%emt 0:00:01]} Nc6 {
[%emt 0:00:02]} 3. Nc3 {[%emt 0:00:03]} Nf6 {[%emt 0:00:05]} 4. Bc4 {[%emt 0:
00:01]} Bc5 {[%emt 0:00:02]} 5. O-O {[%emt 0:00:03]} O-O {[%emt 0:00:02]} 6. d3
{[%emt 0:00:09]} h6 {[%emt 0:00:02]} 7. h3 {[%emt 0:00:03]} d6 {[%emt 0:00:01]}
8. Re1 {[%emt 0:00:28]} Re8 {[%emt 0:00:11]} 9. Be3 {[%emt 0:00:09]} Bb4 {
[%emt 0:00:13]} 10. a3 {[%emt 0:00:08]} Ba5 {[%emt 0:00:03]} 11. b4 {[%emt 0:
00:02]} Bb6 {[%emt 0:00:13]} 12. Bxb6 {[%emt 0:00:10]} axb6 {[%emt 0:00:09]}
13. b5 {[%emt 0:00:05]} Ne7 {[%emt 0:00:07]} 14. Nd5 {[%emt 0:00:12]} Nfxd5 {
[%emt 0:00:18]} 15. Bxd5 {[%emt 0:00:03]} Nxd5 {[%emt 0:00:11]} 16. exd5 {
[%emt 0:00:04]} Bd7 {[%emt 0:00:02]} 17. d4 {[%emt 0:00:20]} c6 {[%emt 0:00:14]
} 18. dxc6 {[%emt 0:00:05]} bxc6 {[%emt 0:00:03]} 19. dxe5 {[%emt 0:00:01]}
dxe5 {[%emt 0:00:04]} 20. Nxe5 {[%emt 0:00:03]} cxb5 {[%emt 0:00:02]} 21. Nxd7
{[%emt 0:00:04]} Rxe1+ {[%emt 0:00:03]} 22. Qxe1 {[%emt 0:00:05]} Qxd7 {
[%emt 0:00:00]} 23. Rd1 {[%emt 0:00:05]} Qe8 {[%emt 0:00:08]} 24. Qd2 {[%emt 0:
00:09]} Rxa3 {[%emt 0:00:14]} 25. Qb4 {[%emt 0:00:03]} Ra8 {[%emt 0:00:03]} 26.
Rd6 {[%emt 0:00:03]} Rb8 {[%emt 0:00:02]} 27. Rd5 {[%emt 0:00:08]} Ra8 {
[%emt 0:00:06]} 28. Rxb5 {[%emt 0:00:07]} Ra1+ {[%emt 0:00:02]} 29. Kh2 {
[%emt 0:00:03]} Rc1 {[%emt 0:00:02]} 30. Rxb6 {[%emt 0:00:04]} Rxc2 {[%emt 0:
00:01]} 31. Rb8 {[%emt 0:00:03]} Rc8 {[%emt 0:00:24]} 32. Rxc8 {[%emt 0:00:11]}
Qxc8 {[%emt 0:00:02]} 33. g3 {[%emt 0:00:02]} Qf5 {[%emt 0:00:10]} 34. Qb8+ {
[%emt 0:00:03]} Kh7 {[%emt 0:00:02]} 35. g4 {[%emt 0:00:02]} Qxf2+ {[%emt 0:00:
03]} 36. Kh1 {[%emt 0:00:03]} Qf3+ {[%emt 0:00:06]} 37. Kh2 {[%emt 0:00:03]}
Qe2+ {[%emt 0:00:08]} 38. Kg3 {[%emt 0:00:08]} Qe6 {[%emt 0:00:05]} 39. Qf4 {
[%emt 0:00:22]} Qf6 {[%emt 0:00:03]} 40. Qf5+ {[%emt 0:00:06]} Qxf5 {[%emt 0:
00:01]} 41. gxf5 {[%emt 0:00:01]} g6 {[%emt 0:00:01]} 42. fxg6+ {[%emt 0:00:02]
} fxg6 {[%emt 0:00:02]} 43. h4 {[%emt 0:00:04]} h5 {[%emt 0:00:01]} 44. Kf4 {
[%emt 0:00:02]} Kh6 {[%emt 0:00:12]} 45. Kg3 {[%emt 0:00:01]} g5 {[%emt 0:00:
01]} 46. hxg5+ {[%emt 0:00:08]} Kxg5 {[%emt 0:00:01]} 47. Kh3 {[%emt 0:00:00]}
h4 {[%emt 0:00:02]} 48. Kh2 {[%emt 0:00:03]} Kg4 {[%emt 0:00:02]} 49. Kg2 {
[%emt 0:00:03]} Kf4 {[%emt 0:00:05]} 50. Kh3 {[%emt 0:00:01]} Kg5 {[%emt 0:00:
01]} 51. Kh2 {[%emt 0:00:02]} Kg4 {[%emt 0:00:01]} 52. Kg2 {[%emt 0:00:04]} Kg5
{[%emt 0:00:06]} 53. Kh3 {[%emt 0:00:02]} Kh5 {[%emt 0:00:01]} 54. Kg2 {
[%emt 0:00:02]} Kg4 {[%emt 0:00:02]} 55. Kh2 {[%emt 0:00:01]} h3 {[%emt 0:00:
02]} 56. Kh1 {[%emt 0:00:03]} Kh4 {[%emt 0:00:04]} 57. Kh2 {[%emt 0:00:02]} Kg4
{[%emt 0:00:01]} 58. Kh1 {[%emt 0:00:02]} Kg3 {[%emt 0:00:02]} 59. Kg1 {
[%emt 0:00:03]} Kg4 {[%emt 0:00:05]} 60. Kh2 {[%emt 0:00:02]} Kh4 {[%emt 0:00:
02]} 61. Kh1 {[%emt 0:00:02]} Kg3 {[%emt 0:00:02]} 62. Kg1 {[%emt 0:00:02]} h2+
{[%emt 0:00:02]} 63. Kh1 {[%emt 0:00:02]} Kh3 {[%emt 0:00:01] Game drawn by
stalemate} 1/2-1/2

[Event "Fast Chess"]
[Site "ChessKid.com"]
[Date "2020.05.01"]
[Round "1"]
[White "Sasse, Gabriel"]
[Black "Georgiev, Maximilian"]
[Result "0-1"]
[ECO "C50"]
[WhiteElo "1290"]
[BlackElo "551"]
[Annotator "Springergabel"]
[PlyCount "50"]
[EventDate "2020.??.??"]
[TimeControl "600"]
[WhiteClock "0:08:53"]
[BlackClock "0:08:44"]

1. e4 {[%emt 0:00:02]} e5 {[%emt 0:00:01]} 2. Nf3 {[%emt 0:00:01]} Nc6 {
[%emt 0:00:01]} 3. Bc4 {[%emt 0:00:01]} h6 {[%emt 0:00:02]} 4. h3 {[%emt 0:00:
02]} Nf6 {[%emt 0:00:01]} 5. O-O {[%emt 0:00:01]} Bc5 {[%emt 0:00:03]} 6. Nc3 {
[%emt 0:00:03]} O-O {[%emt 0:00:01]} 7. Bb3 {[%emt 0:00:04]} d6 {[%emt 0:00:03]
} 8. Bc4 {[%emt 0:00:04]} Be6 {[%emt 0:00:01]} 9. Bxe6 {[%emt 0:00:02]} fxe6 {
[%emt 0:00:01]} 10. d3 {[%emt 0:00:01]} Nd4 {[%emt 0:00:03]} 11. Nxd4 {[%emt 0:
00:04]} Bxd4 {[%emt 0:00:01]} 12. Qf3 {[%emt 0:00:07]} Nd5 $1 {[%emt 0:00:07]}
13. Qg3 {[%emt 0:00:02]} Nxc3 {[%emt 0:00:09]} 14. Bxh6 $4 {[%emt 0:00:02]}
Ne2+ $1 {[%emt 0:00:06]} 15. Kh1 {[%emt 0:00:05]} Nxg3+ {[%emt 0:00:01]} 16.
fxg3 {[%emt 0:00:02]} Rxf1+ {[%emt 0:00:04]} 17. Rxf1 {[%emt 0:00:02]} gxh6 {
[%emt 0:00:01]} 18. c3 {[%emt 0:00:02]} Bb6 {[%emt 0:00:02]} 19. g4 {[%emt 0:
00:06]} Qg5 {[%emt 0:00:03]} 20. g3 {[%emt 0:00:03]} Rf8 {[%emt 0:00:02]} 21.
Ra1 {[%emt 0:00:04]} Qd2 {[%emt 0:00:06]} 22. Rg1 {[%emt 0:00:13]} Bxg1 {
[%emt 0:00:06]} 23. Kxg1 {[%emt 0:00:02]} Qf2+ {[%emt 0:00:01]} 24. Kh1 {
[%emt 0:00:01]} Qf1+ {[%emt 0:00:01]} 25. Kh2 {[%emt 0:00:02]} Rf2# {[%emt 0:
00:01] TallSnazzyBall won by checkmate} 0-1

[Event "Fast Chess"]
[Site "ChessKid.com"]
[Date "2020.05.01"]
[Round "2"]
[White "Li, Tobias"]
[Black "Georgiev, Maximilian"]
[Result "0-1"]
[ECO "C55"]
[WhiteElo "1314"]
[BlackElo "568"]
[Annotator "Abtauschkombinationen"]
[PlyCount "60"]
[EventDate "2020.??.??"]
[TimeControl "600"]
[WhiteClock "0:08:49"]
[BlackClock "0:07:42"]

1. e4 {[%emt 0:00:08]} e5 {[%emt 0:00:01]} 2. Nf3 {[%emt 0:00:00]} Nc6 {
[%emt 0:00:01]} 3. Nc3 {[%emt 0:00:01]} Nf6 {[%emt 0:00:01]} 4. Bc4 {[%emt 0:
00:01]} h6 {[%emt 0:00:05]} 5. O-O {[%emt 0:00:02]} Bb4 {[%emt 0:00:02]} 6. a3
{[%emt 0:00:03]} Ba5 {[%emt 0:00:01]} 7. b4 {[%emt 0:00:02]} Bb6 {[%emt 0:00:
00]} 8. h3 {[%emt 0:00:03]} O-O {[%emt 0:00:02]} 9. d3 {[%emt 0:00:04]} d6 {
[%emt 0:00:02]} 10. Bd2 {[%emt 0:00:06]} Nd4 {[%emt 0:00:07]} 11. Nxd4 {
[%emt 0:00:08]} Bxd4 {[%emt 0:00:02]} 12. Qc1 {[%emt 0:00:02]} Ne8 {[%emt 0:00:
07]} 13. Bxh6 $2 {[%emt 0:00:11]} Qh4 $2 {[%emt 0:00:07]} 14. Qd2 $4 {[%emt 0:
00:17]} Qxh6 {[%emt 0:00:05]} 15. Qxh6 {[%emt 0:00:03]} gxh6 {[%emt 0:00:01]}
16. Rad1 $4 {[%emt 0:00:06]} Bxc3 {[%emt 0:00:01]} 17. Rb1 {[%emt 0:00:15]} Bd4
{[%emt 0:00:03]} 18. Rfe1 {[%emt 0:00:06]} a6 {[%emt 0:00:05]} 19. Rbc1 {
[%emt 0:00:11]} Be6 {[%emt 0:00:02]} 20. Bxe6 {[%emt 0:00:07]} fxe6 {[%emt 0:
00:01]} 21. c3 {[%emt 0:00:01]} Bxf2+ {[%emt 0:00:03]} 22. Kf1 {[%emt 0:00:03]}
Bxe1+ {[%emt 0:00:01]} 23. Kxe1 {[%emt 0:00:00]} Nf6 {[%emt 0:00:02]} 24. Rc2 {
[%emt 0:00:05]} d5 {[%emt 0:00:01]} 25. exd5 {[%emt 0:00:02]} exd5 {[%emt 0:00:
01]} 26. Rf2 {[%emt 0:00:01]} Nd7 {[%emt 0:00:03]} 27. Re2 {[%emt 0:00:03]} d4
{[%emt 0:00:03]} 28. cxd4 {[%emt 0:00:01]} exd4 {[%emt 0:00:01]} 29. Re4 {
[%emt 0:00:03]} Rae8 {[%emt 0:00:02]} 30. Rxe8 {[%emt 0:00:05]} Rxe8+ {[%emt 0:
00:00] TallSnazzyBall won by resignation} 0-1

[Event "Fast Chess"]
[Site "ChessKid.com"]
[Date "2020.05.01"]
[Round "2"]
[White "Li, Patrick"]
[Black "Sasse, Gabriel"]
[Result "0-1"]
[ECO "C50"]
[WhiteElo "1099"]
[BlackElo "1294"]
[Annotator "Abzugsdrohung"]
[PlyCount "80"]
[EventDate "2020.??.??"]
[TimeControl "600"]
[WhiteClock "0:07:17"]
[BlackClock "0:06:34"]

1. e4 {[%emt 0:00:03]} e5 {[%emt 0:00:01]} 2. Nf3 {[%emt 0:00:03]} Nc6 {
[%emt 0:00:00]} 3. Nc3 {[%emt 0:00:02]} Bc5 {[%emt 0:00:01]} 4. Bc4 {[%emt 0:
00:03]} h6 {[%emt 0:00:01]} 5. O-O {[%emt 0:00:05]} Nf6 {[%emt 0:00:00]} 6. h3
{[%emt 0:00:01]} a6 {[%emt 0:00:01]} 7. Re1 {[%emt 0:00:04]} b5 {[%emt 0:00:03]
} 8. Bb3 {[%emt 0:00:04]} Nd4 {[%emt 0:00:05]} 9. Nxd4 {[%emt 0:00:06]} exd4 {
[%emt 0:00:02]} 10. Nd5 {[%emt 0:00:06]} Nxd5 {[%emt 0:00:03]} 11. exd5+ {
[%emt 0:00:01]} Be7 {[%emt 0:00:06]} 12. Qf3 {[%emt 0:00:08]} O-O {[%emt 0:00:
02]} 13. Qe4 $2 {[%emt 0:00:07]} Re8 {[%emt 0:00:03]} 14. Qxd4 {[%emt 0:00:05]}
a5 {[%emt 0:00:04]} 15. Qe4 {[%emt 0:00:02]} a4 {[%emt 0:00:03]} 16. d6 {
[%emt 0:00:07]} cxd6 {[%emt 0:00:06]} 17. Qxa8 {[%emt 0:00:03]} axb3 {[%emt 0:
00:03]} 18. axb3 {[%emt 0:00:02]} Qc7 {[%emt 0:00:07]} 19. Qe4 {[%emt 0:00:06]}
Bb7 {[%emt 0:00:06]} 20. Qg4 {[%emt 0:00:03]} d5 {[%emt 0:00:11]} 21. d4 {
[%emt 0:00:04]} Bc8 {[%emt 0:00:02]} 22. Bxh6 {[%emt 0:00:02]} g6 {[%emt 0:00:
05]} 23. Qg3 {[%emt 0:00:09]} Bd6 {[%emt 0:00:03]} 24. Qg5 {[%emt 0:00:10]}
Bh2+ {[%emt 0:00:04]} 25. Kh1 {[%emt 0:00:05]} Bf4 {[%emt 0:00:02]} 26. Qh4 {
[%emt 0:00:10]} Rxe1+ {[%emt 0:00:03]} 27. Rxe1 {[%emt 0:00:06]} Qxc2 {[%emt 0:
00:07]} 28. Qf6 {[%emt 0:00:13]} Bxh6 {[%emt 0:00:06]} 29. Qd8+ {[%emt 0:00:06]
} Kg7 {[%emt 0:00:04]} 30. Re8 {[%emt 0:00:05]} Bf4 {[%emt 0:00:05]} 31. g3 {
[%emt 0:00:14]} Qd1+ {[%emt 0:00:03]} 32. Kh2 {[%emt 0:00:04]} Bd2 {[%emt 0:00:
13]} 33. Qxc8 {[%emt 0:00:05]} Qf1 {[%emt 0:00:05]} 34. Rg8+ {[%emt 0:00:09]}
Kf6 {[%emt 0:00:02]} 35. Qxd7 {[%emt 0:00:05]} Qxf2+ {[%emt 0:00:03]} 36. Kh1 {
[%emt 0:00:03]} Be3 {[%emt 0:00:03]} 37. Qd6+ {[%emt 0:00:08]} Kf5 {[%emt 0:00:
14]} 38. g4+ {[%emt 0:00:03]} Kg5 {[%emt 0:00:05]} 39. Qh2 {[%emt 0:00:02]}
Qf1+ {[%emt 0:00:06]} 40. Qg1 {[%emt 0:00:06]} Qxg1# {[%emt 0:00:01]
LimeFarActor won by checkmate} 0-1

[Event "Fast Chess"]
[Site "ChessKid.com"]
[Date "2020.05.01"]
[Round "3"]
[White "Georgiev, Maximilian"]
[Black "Halimi, Dorian"]
[Result "1-0"]
[ECO "B01"]
[WhiteElo "584"]
[BlackElo "1125"]
[Annotator "Abzugsschach, Doppelangriff"]
[PlyCount "111"]
[EventDate "2020.??.??"]
[TimeControl "600"]
[WhiteClock "0:04:44"]
[BlackClock "0:07:06"]

1. e4 {[%emt 0:00:02]} d5 {[%emt 0:00:01]} 2. exd5 {[%emt 0:00:02]} Qxd5 {
[%emt 0:00:03]} 3. Nc3 {[%emt 0:00:01]} Qe5+ {[%emt 0:00:01]} 4. Be2 {[%emt 0:
00:03]} Bg4 {[%emt 0:00:04]} 5. Nf3 {[%emt 0:00:02]} Bxf3 {[%emt 0:00:03]} 6.
gxf3 {[%emt 0:00:01]} e6 {[%emt 0:00:01]} 7. d4 {[%emt 0:00:04]} Qf6 {[%emt 0:
00:05]} 8. Bd2 {[%emt 0:00:02]} Bb4 {[%emt 0:00:03]} 9. Bd3 {[%emt 0:00:01]}
Bxc3 {[%emt 0:00:03]} 10. Bxc3 {[%emt 0:00:01]} Nc6 {[%emt 0:00:08]} 11. d5 {
[%emt 0:00:01]} Nd4 {[%emt 0:00:09]} 12. Bxd4 {[%emt 0:00:08]} Qxd4 {[%emt 0:
00:02]} 13. dxe6 $4 {[%emt 0:00:03]} fxe6 {[%emt 0:00:03]} 14. Qe2 {[%emt 0:00:
04]} Qxb2 {[%emt 0:00:03]} 15. Qxe6+ {[%emt 0:00:01]} Ne7 {[%emt 0:00:08]} 16.
O-O {[%emt 0:00:12]} Rf8 {[%emt 0:00:06]} 17. Rfe1 {[%emt 0:00:03]} Qf6 {
[%emt 0:00:12]} 18. Bxh7 {[%emt 0:00:07]} Rd8 {[%emt 0:00:06]} 19. Qxf6 {
[%emt 0:00:03]} Rxf6 {[%emt 0:00:02]} 20. Re3 {[%emt 0:00:06]} Rd2 {[%emt 0:00:
05]} 21. Rc1 {[%emt 0:00:04]} Kf8 {[%emt 0:00:05]} 22. Rb1 {[%emt 0:00:02]} b6
{[%emt 0:00:04]} 23. a3 {[%emt 0:00:03]} Rxc2 {[%emt 0:00:02]} 24. Bxc2 {
[%emt 0:00:02]} Nd5 {[%emt 0:00:03]} 25. Rd3 {[%emt 0:00:11]} c6 {[%emt 0:00:
03]} 26. Bb3 {[%emt 0:00:05]} Rg6+ {[%emt 0:00:05]} 27. Kf1 {[%emt 0:00:04]}
Nf4 {[%emt 0:00:02]} 28. Rd8+ {[%emt 0:00:06]} Ke7 {[%emt 0:00:03]} 29. Ra8 {
[%emt 0:00:05]} a5 {[%emt 0:00:03]} 30. Ra6 {[%emt 0:00:04]} Rg2 {[%emt 0:00:
07]} 31. Rxb6 {[%emt 0:00:07]} Rxh2 {[%emt 0:00:02]} 32. Rxc6 {[%emt 0:00:03]}
Nh3 {[%emt 0:00:09]} 33. Rb2 {[%emt 0:00:07]} Rh1+ {[%emt 0:00:06]} 34. Kg2 {
[%emt 0:00:02]} Re1 {[%emt 0:00:12]} 35. Kxh3 {[%emt 0:00:03]} Re5 {[%emt 0:02:
13]} 36. f4 {[%emt 0:00:12]} Rh5+ {[%emt 0:00:00]} 37. Kg4 {[%emt 0:00:02]} g6
{[%emt 0:00:02]} 38. Re6+ {[%emt 0:00:04]} Kf7 {[%emt 0:00:04]} 39. Re5+ {
[%emt 0:00:01]} Kf6 {[%emt 0:00:04]} 40. Rxh5 {[%emt 0:00:01]} gxh5+ {[%emt 0:
00:02]} 41. Kxh5 {[%emt 0:00:01]} Kf5 {[%emt 0:00:01]} 42. Bc4 {[%emt 0:00:02]}
Kxf4 {[%emt 0:00:01]} 43. Rb5 {[%emt 0:00:01]} Kf3 {[%emt 0:00:02]} 44. Rxa5 {
[%emt 0:00:01]} Kxf2 {[%emt 0:00:01]} 45. Rb5 {[%emt 0:00:01]} Ke3 {[%emt 0:00:
01]} 46. a4 {[%emt 0:00:01]} Kd4 {[%emt 0:00:01]} 47. a5 {[%emt 0:00:01]} Kxc4
{[%emt 0:00:01]} 48. Rb1 {[%emt 0:00:02]} Kc5 {[%emt 0:00:02]} 49. a6 {[%emt 0:
00:03]} Kc4 {[%emt 0:00:01]} 50. a7 {[%emt 0:00:01]} Kc3 {[%emt 0:00:00]} 51.
a8=Q {[%emt 0:00:01]} Kc2 {[%emt 0:00:00]} 52. Rb7 {[%emt 0:00:02]} Kc3 {
[%emt 0:00:02]} 53. Rd7 {[%emt 0:00:01]} Kc4 {[%emt 0:00:03]} 54. Qc8+ {
[%emt 0:00:01]} Kb5 {[%emt 0:00:02]} 55. Rb7+ {[%emt 0:00:01]} Ka6 {[%emt 0:00:
01]} 56. Qa8# {[%emt 0:00:01] TallSnazzyBall won by checkmate} 1-0

[Event "Fast Chess"]
[Site "ChessKid.com"]
[Date "2020.05.01"]
[Round "3"]
[White "Sasse, Gabriel"]
[Black "Li, Tobias"]
[Result "1-0"]
[ECO "C50"]
[WhiteElo "1303"]
[BlackElo "1306"]
[Annotator "inkorrektes Figurenopfer"]
[PlyCount "121"]
[EventDate "2020.??.??"]
[TimeControl "600"]
[WhiteClock "0:06:06"]
[BlackClock "0:06:02"]

1. e4 {[%emt 0:00:03]} e5 {[%emt 0:00:01]} 2. Nf3 {[%emt 0:00:01]} Nc6 {
[%emt 0:00:02]} 3. Bc4 {[%emt 0:00:00]} Bc5 {[%emt 0:00:04]} 4. h3 {[%emt 0:00:
01]} Nf6 {[%emt 0:00:02]} 5. O-O {[%emt 0:00:01]} d6 {[%emt 0:00:02]} 6. Ng5 {
[%emt 0:00:01]} O-O {[%emt 0:00:02]} 7. Nxf7 {[%emt 0:00:01]} Rxf7 {[%emt 0:00:
01]} 8. Bxf7+ {[%emt 0:00:01]} Kxf7 {[%emt 0:00:00]} 9. Nc3 {[%emt 0:00:04]}
Be6 {[%emt 0:00:14]} 10. Nd5 {[%emt 0:00:05]} Nxd5 {[%emt 0:00:04]} 11. exd5 {
[%emt 0:00:01]} Bxd5 {[%emt 0:00:02]} 12. Qh5+ {[%emt 0:00:01]} Kg8 {[%emt 0:
00:03]} 13. d3 {[%emt 0:00:05]} Qf6 {[%emt 0:00:06]} 14. Bg5 {[%emt 0:00:04]}
Qf7 {[%emt 0:00:13]} 15. Qxf7+ {[%emt 0:00:05]} Kxf7 {[%emt 0:00:02]} 16. Bh4 {
[%emt 0:00:04]} Kg8 {[%emt 0:00:10]} 17. c4 {[%emt 0:00:03]} Be6 {[%emt 0:00:
05]} 18. a3 {[%emt 0:00:07]} Rf8 {[%emt 0:00:06]} 19. b4 {[%emt 0:00:03]} Nxb4
$4 {[%emt 0:00:08]} 20. axb4 {[%emt 0:00:02]} Bxb4 {[%emt 0:00:01]} 21. Rxa7 {
[%emt 0:00:06]} Bc5 {[%emt 0:00:03]} 22. Rxb7 {[%emt 0:00:03]} Bb6 {[%emt 0:00:
04]} 23. Be7 {[%emt 0:00:03]} Re8 {[%emt 0:00:02]} 24. Bh4 {[%emt 0:00:08]} Bf5
{[%emt 0:00:02]} 25. Rd1 {[%emt 0:00:10]} Be6 {[%emt 0:00:11]} 26. Re1 {
[%emt 0:00:18]} Bf5 {[%emt 0:00:11]} 27. Bg3 {[%emt 0:00:09]} Bxd3 {[%emt 0:00:
04]} 28. Bh4 {[%emt 0:00:23]} Bxc4 {[%emt 0:00:02]} 29. Rc1 {[%emt 0:00:03]}
Ba6 {[%emt 0:00:07]} 30. Rxb6 {[%emt 0:00:09]} cxb6 {[%emt 0:00:02]} 31. Rc6 {
[%emt 0:00:03]} Bd3 {[%emt 0:00:19]} 32. Rxb6 {[%emt 0:00:07]} d5 {[%emt 0:00:
04]} 33. Rd6 {[%emt 0:00:03]} Bc4 {[%emt 0:00:02]} 34. f3 {[%emt 0:00:09]} e4 {
[%emt 0:00:04]} 35. fxe4 {[%emt 0:00:01]} dxe4 {[%emt 0:00:01]} 36. Kf2 {
[%emt 0:00:03]} Bd3 {[%emt 0:00:01]} 37. Ke3 {[%emt 0:00:02]} Ra8 {[%emt 0:00:
07]} 38. g4 {[%emt 0:00:07]} Ra3 {[%emt 0:00:06]} 39. Rd8+ {[%emt 0:00:04]} Kf7
{[%emt 0:00:01]} 40. Rd7+ {[%emt 0:00:05]} Ke6 {[%emt 0:00:05]} 41. Rxg7 {
[%emt 0:00:03]} Kd6 {[%emt 0:00:15]} 42. Be7+ {[%emt 0:00:07]} Ke6 {[%emt 0:00:
03]} 43. Bxa3 {[%emt 0:00:02]} Kf6 {[%emt 0:00:07]} 44. Rxh7 {[%emt 0:00:02]}
Kg6 {[%emt 0:00:01]} 45. Re7 {[%emt 0:00:05]} Kg5 {[%emt 0:00:02]} 46. Rxe4 {
[%emt 0:00:18]} Bxe4 {[%emt 0:00:02]} 47. Kxe4 {[%emt 0:00:01]} Kh4 {[%emt 0:
00:02]} 48. Kf5 {[%emt 0:00:01]} Kxh3 {[%emt 0:00:01]} 49. g5 {[%emt 0:00:01]}
Kh4 {[%emt 0:00:01]} 50. Kf6 {[%emt 0:00:01]} Kh5 {[%emt 0:00:01]} 51. g6 {
[%emt 0:00:01]} Kh6 {[%emt 0:00:00]} 52. Kf7 {[%emt 0:00:02]} Kg5 {[%emt 0:00:
02]} 53. g7 {[%emt 0:00:01]} Kh6 {[%emt 0:00:00]} 54. g8=Q {[%emt 0:00:01]} Kh5
{[%emt 0:00:01]} 55. Kf6 {[%emt 0:00:02]} Kh4 {[%emt 0:00:01]} 56. Kf5 {
[%emt 0:00:01]} Kh3 {[%emt 0:00:02]} 57. Qg5 {[%emt 0:00:01]} Kh2 {[%emt 0:00:
01]} 58. Kf4 {[%emt 0:00:01]} Kh1 {[%emt 0:00:02]} 59. Qg4 {[%emt 0:00:01]} Kh2
{[%emt 0:00:03]} 60. Kf3 {[%emt 0:00:01]} Kh1 {[%emt 0:00:02]} 61. Qg2# {
[%emt 0:00:01] LimeFarActor won by checkmate} 1-0